fUSD/lending_fUSD_20241102
["ID","MTS","AMOUNT","RATE_DAILY","PERIOD"]
[341184109,1730562635304,-517.1698711,0.00037534,2]
[341184110,1730562635315,-500.0,0.00037534,2]
[341184111,1730562635324,-500.0,0.00037534,2]
[341184112,1730562635334,-539.38425076,0.00037534,2]
[341184113,1730562635343,-500.0,0.00037534,2]
[341184114,1730562635353,-525.1585931,0.00037534,2]
[341184115,1730562635362,-612.71176553,0.00037534,2]
[341184116,1730562635373,-518.24410317,0.00037534,2]
[341184117,1730562635383,-550.88510728,0.00037534,2]
[341184118,1730562635392,-500.57631122,0.00037534,2]
[341184119,1730562635402,-528.1504328,0.00037534,2]
[341184120,1730562635412,-508.31253105,0.00037534,2]
[341184121,1730562635422,-500.0,0.00037534,2]
[341184122,1730562635433,-560.22121856,0.00037534,2]
[341184123,1730562635523,-513.75080624,0.00037534,2]
[341184124,1730562635533,-513.85315565,0.00037534,2]
[341184125,1730562635542,-500.0,0.00037534,2]
[341184126,1730562635551,-500.0,0.00037534,2]
[341184127,1730562635561,-417.18273436,0.00037534,2]
[341184128,1730562635570,-534.01518216,0.00037534,2]
[341184129,1730562635579,-500.0,0.00037534,2]
[341184130,1730562635588,-613.27002839,0.00037534,2]
[341184131,1730562635597,-500.0,0.00037534,2]
[341184132,1730562635606,-500.0,0.00037534,2]
[341184133,1730562635615,-158.342457,0.00037534,7]
[341184134,1730562635624,-293.81934769,0.00037534,2]
[341184135,1730562635634,-500.0,0.00037534,2]
[341184136,1730562635643,-522.35592188,0.00037534,2]
[341184137,1730562635652,-535.60827673,0.00037534,2]
[341184138,1730562635661,-515.3505421,0.00037534,2]
[341184139,1730562635670,-611.98541948,0.00037534,2]
[341184140,1730562635679,-621.86447432,0.00037534,2]
[341184141,1730562635688,-526.04870815,0.00037534,2]
[341184142,1730562635697,-500.0,0.00037534,2]
[341184143,1730562635706,-511.47556235,0.00037534,2]
[341184144,1730562635715,-500.0,0.00037534,2]
[341184145,1730562635725,-632.64825315,0.00037534,2]
[341184146,1730562635735,-639.26926671,0.00037534,2]
[341184147,1730562635746,-500.0,0.00037534,2]
[341184148,1730562635758,-500.0,0.00037534,2]
[341184149,1730562635771,-500.0,0.00037534,2]
[341184150,1730562635780,-500.0,0.00037534,2]
[341184151,1730562635790,-500.0,0.00037534,2]
[341184152,1730562635805,-500.0,0.00037534,2]
[341184153,1730562635816,-253.17504763,0.00037534,2]
[341184154,1730562635828,-500.0,0.00037534,2]
[341184155,1730562635838,-500.0,0.00037534,2]
[341184156,1730562635847,-555.65571316,0.00037534,2]
[341184157,1730562635856,-513.66526127,0.00037534,2]
[341184158,1730562635866,-500.0,0.00037534,2]
[341184159,1730562635876,-512.75001794,0.00037534,2]
[341184160,1730562635887,-538.05808541,0.00037534,2]
[341184161,1730562635896,-521.74435302,0.00037534,2]
[341184162,1730562635906,-500.0,0.00037534,2]
[341184163,1730562635916,-500.0,0.00037534,2]
[341184164,1730562635928,-500.0,0.00037534,2]
[341184165,1730562635939,-604.47832536,0.00037534,2]
[341184166,1730562635950,-500.0,0.00037534,2]
[341184167,1730562635960,-500.0,0.00037534,2]
[341184168,1730562635971,-500.0,0.00037534,2]
[341184169,1730562635981,-500.0,0.00037534,2]
[341184170,1730562635991,-536.58401496,0.00037534,2]
[341184171,1730562636001,-500.0,0.00037534,2]
[341184172,1730562636010,-500.0,0.00037534,2]
[341184173,1730562636021,-500.0,0.00037534,2]
[341184174,1730562636032,-203.93577682,0.00037534,2]
[341184175,1730562636044,-500.0,0.00037534,2]
[341184176,1730562636053,-500.0,0.00037534,2]
[341184177,1730562636064,-603.21454998,0.00037534,2]
[341184178,1730562636073,-500.0,0.00037534,2]
[341184179,1730562636082,-500.0,0.00037534,2]
[341184180,1730562636092,-500.0,0.00037534,2]
[341184181,1730562636102,-345.57576262,0.00037534,2]
[341184182,1730562636111,-500.0,0.00037534,2]
[341184183,1730562636121,-383.18368144,0.00037534,2]
[341184184,1730562636132,-500.0,0.00037534,2]
[341184185,1730562636142,-500.0,0.00037534,2]
[341184186,1730562636154,-511.2536474,0.00037534,2]
[341184187,1730562636163,-500.0,0.00037534,2]
[341184188,1730562636174,-535.09289463,0.00037534,2]
[341184189,1730562636184,-500.0,0.00037534,2]
[341184190,1730562636195,-500.0,0.00037534,2]
[341184191,1730562636205,-500.0,0.00037534,2]
[341184192,1730562636215,-500.0,0.00037534,2]
[341184193,1730562636224,-585.02436739,0.00037534,2]
[341184194,1730562636233,-500.0,0.00037534,2]
[341184195,1730562636243,-195.00307729,0.00037534,2]
[341184196,1730562636252,-503.71485576,0.00037534,2]
[341184197,1730562636261,-625.03897735,0.00037534,2]
[341184198,1730562636270,-586.66492265,0.00037534,2]
[341184199,1730562636280,-524.62846535,0.00037534,2]
[341184200,1730562636289,-500.0,0.00037534,2]
[341184201,1730562636298,-500.0,0.00037534,2]
[341184202,1730562636308,-533.32793726,0.00037534,2]
[341184203,1730562636316,-495.35649947,0.00037534,2]
[341184204,1730562636326,-509.52544986,0.00037534,2]
[341184205,1730562636336,-502.72552607,0.00037534,2]
[341184206,1730562636345,-526.20728075,0.00037534,2]
[341184207,1730562636354,-500.0,0.00037534,2]
[341184208,1730562636363,-309.33657072,0.00037534,2]
[341184209,1730562636372,-574.12682272,0.00037534,2]
[341184210,1730562636381,-151.0,0.00037534,7]
[341184211,1730562636391,-188.892912,0.00037534,7]
[341184212,1730562636400,-500.0,0.00037534,2]
[341184213,1730562636409,-168.04954641,0.00037534,2]
[341184214,1730562636419,-550.1761622,0.00037534,2]
[341184215,1730562636428,-629.00508556,0.00037534,2]
[341184216,1730562636437,-500.0,0.00037534,2]
[341184217,1730562636447,-523.83869999,0.00037534,2]
[341184218,1730562636456,-500.0,0.00037534,2]
[341184219,1730562636465,-500.0,0.00037534,2]
[341184220,1730562636475,-500.0,0.00037534,2]
[341184221,1730562636484,-567.99938583,0.00037534,2]
[341184222,1730562636493,-586.59217379,0.00037534,2]
[341184223,1730562636502,-500.0,0.00037534,2]
[341184224,1730562636511,-498.4925968,0.00037534,2]
[341184225,1730562636521,-172.28784603,0.00037534,2]
[341184226,1730562636530,-513.89309079,0.00037534,2]
[341184227,1730562636539,-551.78978521,0.00037534,2]
[341184228,1730562636548,-500.0,0.00037534,2]
[341184229,1730562636558,-530.92905351,0.00037534,2]
[341184230,1730562636568,-525.39323577,0.00037534,2]
[341184231,1730562636577,-500.0,0.00037534,2]
[341184232,1730562636586,-538.82895071,0.00037534,2]
[341184233,1730562636595,-515.28296473,0.00037534,2]
[341184234,1730562636604,-562.33764266,0.00037534,2]
[341184235,1730562636613,-504.83471463,0.00037534,2]
[341184236,1730562636622,-500.0,0.00037534,2]
[341184237,1730562636632,-500.0,0.00037534,2]
[341184238,1730562636641,-500.0,0.00037534,2]
[341184239,1730562636650,-433.05453227,0.00037534,2]
[341184240,1730562636660,-194.06238076,0.00037534,2]
[341184241,1730562636669,-500.0,0.00037534,2]
[341184242,1730562636679,-509.19032287,0.00037534,2]
[341184243,1730562636688,-500.0,0.00037534,2]
[341184244,1730562636698,-500.0,0.00037534,2]
[341184245,1730562636707,-500.0,0.00037534,2]
[341184246,1730562636716,-151.0,0.00037534,7]
[341184247,1730562636725,-500.0,0.00037534,2]
[341184248,1730562636734,-500.0,0.00037534,2]
[341184249,1730562636744,-536.95135638,0.00037534,2]
[341184250,1730562636753,-156.040262,0.00037534,7]
[341184251,1730562636762,-500.0,0.00037534,2]
[341184252,1730562636771,-427.19424089,0.00037534,2]
[341184253,1730562636780,-500.0,0.00037534,2]
[341184254,1730562636789,-500.0,0.00037534,2]
[341184255,1730562636803,-562.92470974,0.00037534,2]
[341184256,1730562636814,-500.0,0.00037534,2]
[341184257,1730562636824,-500.0,0.00037534,2]
[341184258,1730562636835,-500.0,0.00037534,2]
[341184259,1730562636844,-500.0,0.00037534,2]
[341184260,1730562636853,-412.75,0.00037534,2]
[341184261,1730562636862,-509.88381016,0.00037534,2]
[341184262,1730562636875,-500.0,0.00037534,2]
[341184263,1730562636885,-494.50663879,0.00037534,2]
[341184264,1730562636896,-500.0,0.00037534,2]
[341184265,1730562636909,-500.0,0.00037534,2]
[341184266,1730562636918,-500.0,0.00037534,2]
[341184267,1730562636929,-647.98179081,0.00037534,2]
[341184268,1730562636938,-512.53702244,0.00037534,2]
[341184269,1730562636948,-20000.0,0.00037534,2]
[341184270,1730562636959,-20000.0,0.00037534,2]
[341184271,1730562636969,-20000.0,0.00037534,2]
[341184272,1730562636978,-16210.55454541,0.00037534,2]
[341184273,1730562636987,-500.0,0.00037534,2]
[341184274,1730562636999,-500.0,0.00037534,2]
[341184275,1730562637009,-500.0,0.00037534,2]
[341184276,1730562637019,-500.0,0.00037534,2]
[341184277,1730562637029,-500.0,0.00037534,2]
[341184278,1730562637038,-500.0,0.00037534,2]
[341184279,1730562637047,-500.0,0.00037534,2]
[341184280,1730562637057,-500.0,0.00037534,2]
[341184281,1730562637068,-500.0,0.00037534,2]
[341184282,1730562637081,-500.0,0.00037534,2]
[341184283,1730562637090,-500.0,0.00037534,2]
[341184284,1730562637099,-500.0,0.00037534,2]
[341184285,1730562637108,-314.51927545,0.00037534,2]
[341184286,1730562637118,-500.0,0.00037534,2]
[341184287,1730562637127,-500.0,0.00037534,2]
[341184288,1730562637137,-511.17979754,0.00037534,2]
[341184289,1730562637145,-561.79082288,0.00037534,2]
[341184290,1730562637154,-500.0,0.00037534,2]
[341184291,1730562637163,-500.0,0.00037534,2]
[341184292,1730562637171,-500.0,0.00037534,7]
[341184293,1730562637180,-500.0,0.00037534,2]
[341184294,1730562637189,-500.0,0.00037534,7]
[341184295,1730562637198,-500.0,0.00037534,2]
[341184296,1730562637207,-500.0,0.00037534,7]
[341184297,1730562637215,-500.0,0.00037534,7]
[341184298,1730562637225,-500.0,0.00037534,7]
[341184299,1730562637234,-500.0,0.00037534,7]
[341184300,1730562637243,-500.0,0.00037534,7]
[341184301,1730562637252,-500.0,0.00037534,7]
[341184302,1730562637261,-500.0,0.00037534,7]
[341184303,1730562637270,-328.95347754,0.00037534,7]
[341184304,1730562637279,-500.0,0.00037534,2]
[341184305,1730562637288,-500.0,0.00037534,2]
[341184306,1730562637378,-500.0,0.00037534,2]
[341184307,1730562637388,-2802.7,0.00037534,2]
[341184308,1730562637398,-2802.7,0.00037534,2]
[341184309,1730562637407,-531.31715224,0.00037534,2]
[341184310,1730562637416,-2802.7,0.00037534,2]
[341184311,1730562637425,-2802.7,0.00037534,2]
[341184312,1730562637434,-275.95204212,0.00037534,2]
[341184313,1730562637444,-2802.7,0.00037534,2]
[341184314,1730562637453,-2802.7,0.00037534,2]
[341184315,1730562637463,-2802.7,0.00037534,2]
[341184316,1730562637472,-2802.7,0.00037534,2]
[341184317,1730562637481,-2802.7,0.00037534,2]
[341184318,1730562637490,-500.0,0.00037534,2]
[341184319,1730562637499,-2802.7,0.00037534,2]
[341184320,1730562637509,-500.0,0.00037534,2]
[341184321,1730562637518,-2802.7,0.00037534,2]
[341184322,1730562637527,-500.0,0.00037534,2]
[341184323,1730562637536,-2802.7,0.00037534,2]
[341184324,1730562637546,-2802.7,0.00037534,2]
[341184325,1730562637555,-2802.7,0.00037534,2]
[341184326,1730562637568,-2802.7,0.00037534,2]
[341184327,1730562637577,-2802.7,0.00037534,2]
[341184328,1730562637587,-2802.7,0.00037534,2]
[341184329,1730562637596,-2802.7,0.00037534,2]
[341184330,1730562637605,-2802.7,0.00037534,2]
[341184331,1730562637614,-2802.7,0.00037534,2]
[341184332,1730562637624,-2802.7,0.00037534,2]
[341184333,1730562637633,-2802.7,0.00037534,2]
[341184334,1730562637643,-511.86614147,0.00037534,2]
[341184335,1730562637652,-2802.7,0.00037534,2]
[341184336,1730562637661,-2802.75960716,0.00037534,2]
[341184337,1730562637670,-500.0,0.00037534,2]
[341184338,1730562637680,-500.0,0.00037534,2]
[341184339,1730562637689,-500.0,0.00037534,2]
[341184340,1730562637698,-500.0,0.00037534,2]
[341184341,1730562637708,-500.0,0.00037534,2]
[341184342,1730562637717,-500.0,0.00037534,2]
[341184343,1730562637726,-500.0,0.00037534,2]
[341184344,1730562637735,-598.48720672,0.00037534,2]
[341184345,1730562637744,-515.81149687,0.00037534,2]
[341184346,1730562637754,-500.0,0.00037534,2]
[341184347,1730562637764,-500.0,0.00037534,2]
[341184348,1730562637773,-527.34079702,0.00037534,2]
[341184349,1730562637783,-500.0,0.00037534,2]
[341184350,1730562637793,-529.35029173,0.00037534,2]
[341184351,1730562637806,-500.0,0.00037534,2]
[341184352,1730562637817,-500.0,0.00037534,2]
[341184353,1730562637827,-500.0,0.00037534,2]
[341184354,1730562637836,-500.0,0.00037534,2]
[341184355,1730562637846,-413.1558675,0.00037534,2]
[341184356,1730562637856,-500.0,0.00037534,2]
[341184357,1730562637865,-500.0,0.00037534,2]
[341184358,1730562637875,-500.0,0.00037534,2]
[341184359,1730562637884,-155.97456206,0.00037534,2]
[341184360,1730562637894,-500.0,0.00037534,2]
[341184361,1730562637904,-500.0,0.00037534,2]
[341184362,1730562637913,-500.0,0.00037534,2]
[341184363,1730562637922,-500.0,0.00037534,2]
[341184364,1730562637931,-500.0,0.00037534,2]
[341184365,1730562637940,-500.0,0.00037534,2]
[341184366,1730562637950,-588.57578611,0.00037534,2]
[341184367,1730562637959,-500.19387838,0.00037534,2]
[341184368,1730562637969,-500.0,0.00037534,2]
[341184369,1730562637978,-517.98958231,0.00037534,2]
[341184370,1730562637987,-169.21263859,0.00037534,2]
[341184371,1730562637997,-634.15503315,0.00037534,2]
[341184372,1730562638006,-516.98002888,0.00037534,2]
[341184373,1730562638016,-503.74039043,0.00037534,2]
[341184374,1730562638025,-500.0,0.00037534,2]
[341184375,1730562638035,-500.0,0.00037534,50]
[341184376,1730562638045,-528.23237362,0.00037534,2]
[341184377,1730562638054,-215.14,0.00037534,2]
[341184378,1730562638066,-505.19929736,0.00037534,2]
[341184379,1730562638075,-513.74577552,0.00037534,2]
[341184380,1730562638085,-532.34910687,0.00037534,2]
[341184381,1730562638094,-500.0,0.00037534,2]
[341184382,1730562638103,-535.45577644,0.00037534,2]
[341184383,1730562638112,-500.0,0.00037534,2]
[341184384,1730562638121,-500.0,0.00037534,2]
[341184385,1730562638130,-500.0,0.00037534,2]
[341184386,1730562638140,-500.0,0.00037534,2]
[341184387,1730562638149,-500.0,0.00037534,2]
[341184389,1730562638158,-500.0,0.00037534,2]
[341184390,1730562638168,-174.87109656,0.00037534,2]
[341184392,1730562638177,-500.0,0.00037534,2]
[341184394,1730562638186,-500.0,0.00037534,2]
[341184395,1730562638195,-500.0,0.00037534,2]
[341184397,1730562638205,-500.0,0.00037534,2]
[341184398,1730562638214,-455.16145364,0.00037534,2]
[341184399,1730562638223,-500.0,0.00037534,2]
[341184400,1730562638233,-500.0,0.00037534,2]
[341184401,1730562638243,-500.0,0.00037534,2]
[341184402,1730562638253,-500.0,0.00037534,2]
[341184403,1730562638263,-500.0,0.00037534,2]
[341184404,1730562638272,-500.0,0.00037534,2]
[341184405,1730562638282,-500.0,0.00037534,2]
[341184406,1730562638293,-500.0,0.00037534,2]
[341184407,1730562638303,-500.0,0.00037534,2]
[341184408,1730562638314,-500.0,0.00037534,2]
[341184409,1730562638323,-441.80120193,0.00037534,2]
[341184410,1730562638332,-500.0,0.00037534,2]
[341184411,1730562638343,-590.49107408,0.00037534,2]
[341184412,1730562638352,-500.0,0.00037534,2]
[341184413,1730562638361,-507.72336584,0.00037534,2]
[341184415,1730562638371,-500.0,0.00037534,2]
[341184417,1730562638381,-500.0,0.00037534,2]
[341184419,1730562638390,-500.0,0.00037534,2]
[341184421,1730562638400,-500.0,0.00037534,2]
[341184423,1730562638409,-500.0,0.00037534,2]
[341184425,1730562638419,-500.0,0.00037534,2]
[341184427,1730562638428,-500.0,0.00037534,2]
[341184428,1730562638437,-500.0,0.00037534,2]
[341184429,1730562638447,-500.0,0.00037534,2]
[341184430,1730562638456,-500.0,0.00037534,2]
[341184431,1730562638466,-500.0,0.00037534,2]
[341184432,1730562638476,-300.0,0.00037534,2]
[341184433,1730562638486,-456.88,0.00037534,2]
[341184434,1730562638495,-500.0,0.00037534,2]
[341184435,1730562638505,-408.37748704,0.00037534,2]
[341184436,1730562638515,-500.0,0.00037534,2]
[341184437,1730562638524,-500.0,0.00037534,2]
[341184438,1730562638533,-500.0,0.00037534,2]
[341184439,1730562638543,-500.0,0.00037534,2]
[341184440,1730562638553,-510.5,0.00037534,2]
[341184441,1730562638564,-500.0,0.00037534,2]
[341184442,1730562638573,-500.0,0.00037534,2]
[341184443,1730562638583,-500.0,0.00037534,2]
[341184444,1730562638592,-500.0,0.00037534,2]
[341184445,1730562638603,-500.0,0.00037534,2]
[341184446,1730562638612,-500.0,0.00037534,2]
[341184447,1730562638621,-500.0,0.00037534,2]
[341184448,1730562638631,-500.0,0.00037534,2]
[341184449,1730562638640,-279.52,0.00037534,2]
[341184450,1730562638650,-500.0,0.00037534,2]
[341184451,1730562638659,-151.88,0.00037534,2]
[341184452,1730562638668,-262.34204346,0.00037534,2]
[341184453,1730562638678,-471.25211562,0.00037534,2]
[341184454,1730562638687,-500.0,0.00037534,2]
[341184455,1730562638697,-500.0,0.00037534,2]
[341184456,1730562638706,-500.0,0.00037534,2]
[341184457,1730562638716,-500.0,0.00037534,2]
[341184458,1730562638727,-500.0,0.00037534,2]
[341184459,1730562638737,-520.15754252,0.00037534,2]
[341184460,1730562638747,-500.0,0.00037534,2]
[341184461,1730562638756,-519.91858794,0.00037534,2]
[341184462,1730562638767,-533.24806137,0.00037534,2]
[341184463,1730562638776,-500.0,0.00037534,2]
[341184464,1730562638787,-500.0,0.00037534,2]
[341184465,1730562638801,-500.0,0.00037534,2]
[341184466,1730562638814,-500.0,0.00037534,2]
[341184467,1730562638823,-500.0,0.00037534,2]
[341184468,1730562638833,-500.0,0.00037534,2]
[341184469,1730562638843,-633.85770574,0.00037534,2]
[341184470,1730562638853,-517.32207988,0.00037534,2]
[341184471,1730562638863,-500.0,0.00037534,2]
[341184472,1730562638874,-500.0,0.00037534,2]
[341184473,1730562638884,-521.9573249,0.00037534,2]
[341184474,1730562638894,-257.52481629,0.00037534,2]
[341184475,1730562638903,-525.56547495,0.00037534,2]
[341184476,1730562638913,-500.0,0.00037534,2]
[341184477,1730562638922,-500.0,0.00037534,2]
[341184478,1730562638932,-503.48445935,0.00037534,2]
[341184479,1730562638942,-500.0,0.00037534,2]
[341184480,1730562638951,-500.0,0.00037534,2]
[341184481,1730562638961,-500.0,0.00037534,2]
[341184482,1730562638972,-500.0,0.00037534,2]
[341184483,1730562638983,-500.0,0.00037534,2]
[341184484,1730562638994,-500.0,0.00037534,2]
[341184485,1730562639079,-500.0,0.00037534,2]
[341184486,1730562639089,-500.0,0.00037534,2]
[341184487,1730562639098,-500.0,0.00037534,2]
[341184488,1730562639107,-500.0,0.00037534,2]
[341184489,1730562639117,-500.0,0.00037534,2]
[341184490,1730562639126,-500.0,0.00037534,2]
[341184491,1730562639135,-500.0,0.00037534,2]
[341184492,1730562639145,-581.04293759,0.00037534,2]
[341184493,1730562639155,-395.48862304,0.00037534,2]
[341184494,1730562639165,-465.57721353,0.00037534,2]
[341184495,1730562639176,-500.0,0.00037534,2]
[341184496,1730562639187,-500.0,0.00037534,2]
[341184497,1730562639198,-500.0,0.00037534,2]
[341184498,1730562639207,-532.07483297,0.00037534,2]
[341184499,1730562639216,-503.00077062,0.00037534,2]
[341184500,1730562639225,-534.80048912,0.00037534,2]
[341184501,1730562639234,-500.0,0.00037534,2]
[341184502,1730562639243,-500.0,0.00037534,2]
[341184503,1730562639253,-500.0,0.00037534,2]
[341184504,1730562639262,-500.0,0.00037534,2]
[341184505,1730562639271,-500.0,0.00037534,2]
[341184506,1730562639280,-527.47,0.00037534,2]
[341184507,1730562639289,-500.0,0.00037534,2]
[341184508,1730562639298,-632.92273688,0.00037534,2]
[341184509,1730562639307,-500.0,0.00037534,2]
[341184510,1730562639316,-503.87884744,0.00037534,2]
[341184511,1730562639325,-500.0,0.00037534,2]
[341184512,1730562639334,-500.0,0.00037534,2]
[341184513,1730562639343,-500.0,0.00037534,2]
[341184514,1730562639352,-520.77833094,0.00037534,2]
[341184515,1730562639362,-508.03748835,0.00037534,2]
[341184516,1730562639372,-500.0,0.00037534,2]
[341184517,1730562639381,-500.0,0.00037534,2]
[341184518,1730562639391,-291.33287427,0.00037534,2]
[341184519,1730562639400,-506.11746935,0.00037534,2]
[341184520,1730562639409,-500.0,0.00037534,2]
[341184521,1730562639419,-500.0,0.00037534,2]
[341184522,1730562639428,-500.0,0.00037534,2]
[341184523,1730562639437,-500.0,0.00037534,2]
[341184524,1730562639446,-500.0,0.00037534,2]
[341184525,1730562639456,-500.0,0.00037534,2]
[341184526,1730562639465,-500.0,0.00037534,2]
[341184527,1730562639475,-500.0,0.00037534,2]
[341184528,1730562639485,-500.0,0.00037534,2]
[341184529,1730562639494,-500.0,0.00037534,2]
[341184530,1730562639503,-500.0,0.00037534,2]
[341184531,1730562639513,-500.0,0.00037534,2]
[341184532,1730562639522,-500.0,0.00037534,2]
[341184533,1730562639531,-500.0,0.00037534,2]
[341184534,1730562639540,-500.0,0.00037534,2]
[341184535,1730562639549,-532.35957779,0.00037534,2]
[341184536,1730562639560,-500.0,0.00037534,2]
[341184537,1730562639569,-500.0,0.00037534,2]
[341184538,1730562639578,-500.0,0.00037534,2]
[341184539,1730562639588,-500.0,0.00037534,2]
[341184540,1730562639596,-300.0,0.00037534,2]
[341184541,1730562639605,-500.0,0.00037534,2]
[341184542,1730562639615,-500.0,0.00037534,2]
[341184543,1730562639624,-300.0,0.00037534,2]
[341184544,1730562639633,-500.0,0.00037534,2]
[341184545,1730562639643,-518.36314567,0.00037534,2]
[341184546,1730562639652,-500.0,0.00037534,2]
[341184547,1730562639662,-300.0,0.00037534,2]
[341184548,1730562639671,-500.0,0.00037534,2]
[341184549,1730562639680,-169.77115894,0.00037534,2]
[341184550,1730562639690,-551.6974732,0.00037534,2]
[341184551,1730562639701,-500.0,0.00037534,2]
[341184552,1730562639710,-545.65875873,0.00037534,2]
[341184553,1730562639720,-562.88312524,0.00037534,2]
[341184554,1730562639730,-500.0,0.00037534,2]
[341184555,1730562639739,-500.0,0.00037534,2]
[341184556,1730562639748,-500.0,0.00037534,2]
[341184557,1730562639757,-500.0,0.00037534,2]
[341184558,1730562639766,-500.0,0.00037534,2]
[341184559,1730562639775,-500.0,0.00037534,2]
[341184560,1730562639785,-500.0,0.00037534,2]
[341184561,1730562639796,-500.0,0.00037534,2]
[341184562,1730562639806,-500.0,0.00037534,2]
[341184563,1730562639819,-500.0,0.00037534,2]
[341184564,1730562639828,-500.0,0.00037534,2]
[341184565,1730562639838,-497.68074941,0.00037534,2]
[341184566,1730562639847,-500.0,0.00037534,2]
[341184567,1730562639857,-500.0,0.00037534,2]
[341184568,1730562639867,-500.0,0.00037534,2]
[341184569,1730562639876,-526.91586195,0.00037534,2]
[341184570,1730562639885,-501.46571167,0.00037534,2]
[341184571,1730562639895,-500.0,0.00037534,2]
[341184572,1730562639905,-500.0,0.00037534,2]
[341184573,1730562639915,-500.0,0.00037534,2]
[341184574,1730562639926,-500.78100262,0.00037534,2]
[341184575,1730562639935,-500.0,0.00037534,2]
[341184576,1730562639945,-500.0,0.00037534,2]
[341184577,1730562639955,-509.65389085,0.00037534,2]
[341184578,1730562639966,-2176.78,0.00037534,2]
[341184579,1730562639976,-520.60763618,0.00037534,2]
[341184580,1730562639985,-2176.78,0.00037534,2]
[341184581,1730562639995,-2176.78,0.00037534,2]
[341184582,1730562640005,-2176.78,0.00037534,2]
[341184583,1730562640016,-2176.78,0.00037534,2]
[341184584,1730562640027,-2176.78,0.00037534,2]
[341184585,1730562640036,-500.0,0.00037534,2]
[341184586,1730562640046,-2176.78,0.00037534,2]
[341184587,1730562640055,-500.0,0.00037534,2]
[341184588,1730562640065,-2176.78,0.00037534,2]
[341184589,1730562640074,-500.0,0.00037534,2]
[341184590,1730562640083,-2176.78,0.00037534,2]
[341184591,1730562640092,-500.0,0.00037534,2]
[341184592,1730562640101,-2176.78,0.00037534,2]
[341184593,1730562640110,-2176.78,0.00037534,2]
[341184594,1730562640119,-2176.78,0.00037534,2]
[341184595,1730562640128,-2176.78,0.00037534,2]
[341184596,1730562640138,-500.0,0.00037534,2]
[341184597,1730562640147,-2176.78,0.00037534,2]
[341184598,1730562640156,-2176.78,0.00037534,2]
[341184599,1730562640165,-500.0,0.00037534,2]
[341184600,1730562640174,-2176.78,0.00037534,2]
[341184601,1730562640183,-2176.78,0.00037534,2]
[341184602,1730562640192,-500.0,0.00037534,2]
[341184603,1730562640203,-503.90362677,0.00037534,2]
[341184604,1730562640212,-154.94,0.00037534,2]
[341184605,1730562640221,-2176.78,0.00037534,2]
[341184606,1730562640230,-2176.78,0.00037534,2]
[341184608,1730562640240,-2176.78,0.00037534,2]
[341184609,1730562640249,-2176.78,0.00037534,2]
[341184610,1730562640259,-2176.78,0.00037534,2]
[341184611,1730562640268,-2176.78,0.00037534,2]
[341184612,1730562640277,-2176.8829963,0.00037534,2]
[341184613,1730562640286,-172.1055019,0.00037534,2]
[341184614,1730562640295,-508.20497629,0.00037534,2]
[341184615,1730562640304,-544.34561285,0.00037534,2]
[341184616,1730562640314,-500.0,0.00037534,2]
[341184617,1730562640323,-500.0,0.00037534,2]
[341184618,1730562640332,-500.0,0.00037534,2]
[341184619,1730562640342,-584.26818847,0.00037534,2]
[341184620,1730562640351,-500.54597048,0.00037534,2]